[Event "Early-Titled-Tuesday-Blitz-May-14-2024"]
[Site "Chess.com"]
[Date "2024.05.14"]
[Round "8"]
[White "rhwr"]
[Black "Lady_Nika"]
[Result "0-1"]
[WhiteElo "2333"]
[BlackElo "2490"]
[TimeControl "180+1"]
[EndTime "9:30:54 PDT"]
[Termination "Lady_Nika won on time"]

1. e4 {[%clk 0:03:00.9]} 1... e6 {[%clk 0:02:59.8]} 2. Nf3 {[%clk 0:02:58.3]}
2... d5 {[%clk 0:02:59.8]} 3. e5 {[%clk 0:02:59]} 3... c5 {[%clk 0:02:59.3]} 4.
b4 {[%clk 0:02:59.6]} 4... cxb4 {[%clk 0:02:59]} 5. a3 {[%clk 0:03:00.3]} 5...
bxa3 {[%clk 0:02:58.9]} 6. c3 {[%clk 0:02:58.7]} 6... Bd7 {[%clk 0:02:55.1]} 7.
d4 {[%clk 0:02:58.8]} 7... Na6 {[%clk 0:02:55.2]} 8. Bd3 {[%clk 0:02:58.1]} 8...
Ne7 {[%clk 0:02:53.6]} 9. O-O {[%clk 0:02:57.5]} 9... Nc6 {[%clk 0:02:52.3]} 10.
Nxa3 {[%clk 0:02:47.3]} 10... Nc7 {[%clk 0:02:51.8]} 11. Nc2 {[%clk 0:02:45.5]}
11... Be7 {[%clk 0:02:51]} 12. Rb1 {[%clk 0:02:43.2]} 12... b6 {[%clk
0:02:47.7]} 13. h3 {[%clk 0:02:32.3]} 13... O-O {[%clk 0:02:47.2]} 14. Ne3
{[%clk 0:02:21.2]} 14... Na5 {[%clk 0:02:23.4]} 15. Nd2 {[%clk 0:02:12.2]} 15...
b5 {[%clk 0:02:22.6]} 16. f4 {[%clk 0:02:01.8]} 16... Nc4 {[%clk 0:02:22.2]} 17.
Ndxc4 {[%clk 0:01:55.6]} 17... bxc4 {[%clk 0:02:21]} 18. Bc2 {[%clk 0:01:55.2]}
18... Nb5 {[%clk 0:02:20.8]} 19. Bd2 {[%clk 0:01:54.1]} 19... Qa5 {[%clk
0:02:20.4]} 20. Ra1 {[%clk 0:01:52.7]} 20... Qb6 {[%clk 0:02:18.7]} 21. f5
{[%clk 0:01:46.3]} 21... f6 {[%clk 0:02:11.9]} 22. fxe6 {[%clk 0:01:41.4]} 22...
Bxe6 {[%clk 0:02:11.7]} 23. Qh5 {[%clk 0:01:39.3]} 23... f5 {[%clk 0:01:40.1]}
24. Bxf5 {[%clk 0:01:31.9]} 24... Bxf5 {[%clk 0:01:37.3]} 25. Nxf5 {[%clk
0:01:20.9]} 25... Rae8 {[%clk 0:00:53.2]} 26. Qf3 {[%clk 0:00:36.8]} 26... Bd8
{[%clk 0:00:44.5]} 27. Qxd5+ {[%clk 0:00:35.5]} 27... Kh8 {[%clk 0:00:44.5]} 28.
Qxc4 {[%clk 0:00:22.2]} 28... Rxe5 {[%clk 0:00:43.5]} 29. Ne3 {[%clk 0:00:18.9]}
29... Ree8 {[%clk 0:00:40.8]} 30. Nd5 {[%clk 0:00:15.7]} 30... Qb7 {[%clk
0:00:31]} 31. Bf4 {[%clk 0:00:15]} 31... Bh4 {[%clk 0:00:14.8]} 32. Be5 {[%clk
0:00:14.5]} 32... Rc8 {[%clk 0:00:11.1]} 33. Qb3 {[%clk 0:00:12.5]} 33... Qd7
{[%clk 0:00:05]} 34. Rxf8+ {[%clk 0:00:09.5]} 34... Rxf8 {[%clk 0:00:05.9]} 35.
Nf4 {[%clk 0:00:09.8]} 35... Nd6 {[%clk 0:00:03.3]} 36. Qd5 {[%clk 0:00:08.8]}
36... Be7 {[%clk 0:00:03.4]} 37. Rf1 {[%clk 0:00:07.5]} 37... Rc8 {[%clk
0:00:03.3]} 38. Qf7 {[%clk 0:00:06.4]} 38... Nxf7 {[%clk 0:00:02]} 0-1

[Event "Early-Titled-Tuesday-Blitz-May-14-2024"]
[Site "Chess.com"]
[Date "2024.05.14"]
[Round "8"]
[White "DenisQ"]
[Black "Artem_Koval"]
[Result "1-0"]
[WhiteElo "2726"]
[BlackElo "2567"]
[TimeControl "180+1"]
[EndTime "9:30:58 PDT"]
[Termination "DenisQ won by resignation"]

1. Nf3 {[%clk 0:03:00.9]} 1... d5 {[%clk 0:02:59.6]} 2. c4 {[%clk 0:03:00.4]}
2... e6 {[%clk 0:02:59.5]} 3. g3 {[%clk 0:02:59.9]} 3... Nf6 {[%clk 0:02:59.8]}
4. Bg2 {[%clk 0:02:59.7]} 4... Be7 {[%clk 0:03:00.4]} 5. O-O {[%clk 0:02:59.8]}
5... O-O {[%clk 0:03:01.1]} 6. d4 {[%clk 0:02:59.9]} 6... dxc4 {[%clk
0:03:01.5]} 7. Ne5 {[%clk 0:02:59.6]} 7... Nc6 {[%clk 0:03:01.3]} 8. Bxc6 {[%clk
0:02:58.8]} 8... bxc6 {[%clk 0:03:01.6]} 9. Nxc6 {[%clk 0:02:59.3]} 9... Qe8
{[%clk 0:03:01.8]} 10. Nxe7+ {[%clk 0:02:59.8]} 10... Qxe7 {[%clk 0:03:02.7]}
11. Qc2 {[%clk 0:03:00]} 11... e5 {[%clk 0:03:02.7]} 12. Rd1 {[%clk 0:02:59.3]}
12... exd4 {[%clk 0:02:48.8]} 13. Rxd4 {[%clk 0:02:58.4]} 13... Be6 {[%clk
0:02:41]} 14. Nc3 {[%clk 0:02:57.6]} 14... Rad8 {[%clk 0:02:38.8]} 15. Rxd8
{[%clk 0:02:55.5]} 15... Rxd8 {[%clk 0:02:39.7]} 16. Bg5 {[%clk 0:02:54.7]}
16... h6 {[%clk 0:02:39.4]} 17. Bxf6 {[%clk 0:02:54.6]} 17... Qxf6 {[%clk
0:02:40.2]} 18. Rd1 {[%clk 0:02:54.5]} 18... Rxd1+ {[%clk 0:02:20.5]} 19. Qxd1
{[%clk 0:02:53.5]} 19... Qe5 {[%clk 0:02:21]} 20. Kg2 {[%clk 0:02:46.1]} 20...
g6 {[%clk 0:02:13.2]} 21. Qd2 {[%clk 0:02:40.8]} 21... Kg7 {[%clk 0:02:12.5]}
22. Qf4 {[%clk 0:02:35.9]} 22... Qc5 {[%clk 0:02:05.8]} 23. f3 {[%clk
0:02:21.7]} 23... Bf5 {[%clk 0:01:46.6]} 24. h4 {[%clk 0:02:15.1]} 24... h5
{[%clk 0:01:42]} 25. Qd2 {[%clk 0:01:56.9]} 25... Qe5 {[%clk 0:01:27.2]} 26. Kf2
{[%clk 0:01:54.6]} 26... Kh7 {[%clk 0:01:15]} 27. Qe3 {[%clk 0:01:51.7]} 27...
Qa5 {[%clk 0:01:00.8]} 28. Qd4 {[%clk 0:01:44.5]} 28... c6 {[%clk 0:00:56]} 29.
Qxc4 {[%clk 0:01:36.7]} 29... Qb6+ {[%clk 0:00:55.8]} 30. Kg2 {[%clk 0:01:31.1]}
30... Be6 {[%clk 0:00:55.8]} 31. Qe4 {[%clk 0:01:20.3]} 31... Qxb2 {[%clk
0:00:55.7]} 32. Qxc6 {[%clk 0:01:19.3]} 32... Bxa2 {[%clk 0:00:55.2]} 33. Kf2
{[%clk 0:01:10.7]} 33... Be6 {[%clk 0:00:50.4]} 34. Ne4 {[%clk 0:01:09.3]} 34...
Kg7 {[%clk 0:00:30.1]} 35. Qc5 {[%clk 0:01:03.1]} 35... a6 {[%clk 0:00:24.8]}
36. Ng5 {[%clk 0:01:01.4]} 36... Bf5 {[%clk 0:00:17.3]} 37. Qa7 {[%clk
0:00:49.9]} 37... Qa2 {[%clk 0:00:14.5]} 38. Qd4+ {[%clk 0:00:46.9]} 38... Kg8
{[%clk 0:00:14.4]} 39. Qd8+ {[%clk 0:00:44.9]} 39... Kg7 {[%clk 0:00:14.5]} 40.
Qd4+ {[%clk 0:00:44.6]} 40... Kg8 {[%clk 0:00:14.7]} 41. g4 {[%clk 0:00:39.8]}
41... hxg4 {[%clk 0:00:14.4]} 42. fxg4 {[%clk 0:00:39.6]} 42... Be6 {[%clk
0:00:13.5]} 43. Ne4 {[%clk 0:00:37]} 43... Bc4 {[%clk 0:00:10.6]} 44. Nf6+
{[%clk 0:00:33.4]} 44... Kf8 {[%clk 0:00:10.7]} 45. Qe5 {[%clk 0:00:28.7]} 45...
Be6 {[%clk 0:00:09.5]} 46. g5 {[%clk 0:00:20.8]} 46... Qa3 {[%clk 0:00:06.4]}
47. Qb8+ {[%clk 0:00:18.9]} 47... Ke7 {[%clk 0:00:05.8]} 48. Qe8+ {[%clk
0:00:18.7]} 48... Kd6 {[%clk 0:00:06.2]} 49. Qf8+ {[%clk 0:00:19.1]} 49... Ke5
{[%clk 0:00:06.6]} 50. Qxa3 {[%clk 0:00:19.6]} 1-0

[Event "Early-Titled-Tuesday-Blitz-May-14-2024"]
[Site "Chess.com"]
[Date "2024.05.14"]
[Round "8"]
[White "chessburger_tv"]
[Black "Kunalm64"]
[Result "0-1"]
[WhiteElo "2410"]
[BlackElo "2618"]
[TimeControl "180+1"]
[EndTime "9:31:00 PDT"]
[Termination "Kunalm64 won by checkmate"]

1. c4 {[%clk 0:03:00.9]} 1... g6 {[%clk 0:02:54]} 2. d4 {[%clk 0:02:58.1]} 2...
Bg7 {[%clk 0:02:54.3]} 3. e4 {[%clk 0:02:52.3]} 3... e6 {[%clk 0:02:53.5]} 4. h4
{[%clk 0:02:50.3]} 4... h5 {[%clk 0:02:53]} 5. Nc3 {[%clk 0:02:48.4]} 5... Ne7
{[%clk 0:02:52.8]} 6. Bg5 {[%clk 0:02:47.8]} 6... c5 {[%clk 0:02:52]} 7. d5
{[%clk 0:02:47.6]} 7... d6 {[%clk 0:02:51.5]} 8. Nge2 {[%clk 0:02:38.3]} 8...
O-O {[%clk 0:02:46.9]} 9. Ng3 {[%clk 0:02:37.8]} 9... b5 {[%clk 0:02:40.3]} 10.
Qd2 {[%clk 0:02:21.6]} 10... b4 {[%clk 0:02:35.8]} 11. Nd1 {[%clk 0:02:20.8]}
11... exd5 {[%clk 0:02:35.8]} 12. exd5 {[%clk 0:02:18.1]} 12... Qe8 {[%clk
0:02:23.2]} 13. Be2 {[%clk 0:02:17.6]} 13... Nf5 {[%clk 0:02:23.1]} 14. Nxf5
{[%clk 0:02:09.9]} 14... Bxf5 {[%clk 0:02:23.5]} 15. Ne3 {[%clk 0:02:09.4]}
15... Qe5 {[%clk 0:02:11.1]} 16. Nxf5 {[%clk 0:01:52.2]} 16... Qxf5 {[%clk
0:02:10.9]} 17. O-O {[%clk 0:01:50.8]} 17... Re8 {[%clk 0:02:05.6]} 18. Bd3
{[%clk 0:01:51.2]} 18... Qg4 {[%clk 0:02:05.6]} 19. Rae1 {[%clk 0:01:44.9]}
19... Nd7 {[%clk 0:02:04.7]} 20. Qf4 {[%clk 0:01:12.5]} 20... Qxf4 {[%clk
0:01:27.3]} 21. Bxf4 {[%clk 0:01:12.4]} 21... Bxb2 {[%clk 0:00:46.9]} 22. Bxd6
{[%clk 0:01:11.7]} 22... Be5 {[%clk 0:00:47.3]} 23. Bxe5 {[%clk 0:01:05.5]}
23... Nxe5 {[%clk 0:00:48]} 24. Be2 {[%clk 0:01:05.7]} 24... f5 {[%clk 0:00:47]}
25. f4 {[%clk 0:01:05.8]} 25... Nf7 {[%clk 0:00:46.8]} 26. Bd3 {[%clk 0:01:04]}
26... Nd6 {[%clk 0:00:46.5]} 27. Re5 {[%clk 0:01:03.6]} 27... Kf7 {[%clk
0:00:36.8]} 28. Rfe1 {[%clk 0:01:04.2]} 28... a5 {[%clk 0:00:36.6]} 29. Kf2
{[%clk 0:00:58.5]} 29... a4 {[%clk 0:00:36.4]} 30. Bc2 {[%clk 0:00:58.3]} 30...
Nxc4 {[%clk 0:00:32.2]} 31. Rxe8 {[%clk 0:00:57.8]} 31... Rxe8 {[%clk
0:00:32.8]} 32. Rxe8 {[%clk 0:00:58.4]} 32... Kxe8 {[%clk 0:00:33.1]} 33. Bxa4+
{[%clk 0:00:59.3]} 33... Ke7 {[%clk 0:00:33.2]} 34. Ke2 {[%clk 0:00:57.9]} 34...
Nb6 {[%clk 0:00:30.7]} 35. Bc6 {[%clk 0:00:56]} 35... Kd6 {[%clk 0:00:30.5]} 36.
Be8 {[%clk 0:00:55.2]} 36... Nxd5 {[%clk 0:00:30.6]} 37. g3 {[%clk 0:00:51.2]}
37... c4 {[%clk 0:00:11.5]} 38. Bxg6 {[%clk 0:00:48]} 38... Nc3+ {[%clk
0:00:11.5]} 39. Kd2 {[%clk 0:00:44.3]} 39... Ke6 {[%clk 0:00:11.7]} 40. Bxh5
{[%clk 0:00:44.4]} 40... Nxa2 {[%clk 0:00:11.5]} 41. Be2 {[%clk 0:00:42.4]}
41... Kd5 {[%clk 0:00:10.9]} 42. h5 {[%clk 0:00:36.2]} 42... b3 {[%clk
0:00:11.2]} 43. h6 {[%clk 0:00:25.6]} 43... c3+ {[%clk 0:00:10.3]} 44. Kd3
{[%clk 0:00:10.9]} 44... c2 {[%clk 0:00:10.6]} 45. h7 {[%clk 0:00:07.9]} 45...
c1=Q {[%clk 0:00:10.2]} 46. h8=Q {[%clk 0:00:08.8]} 46... Nb4# {[%clk
0:00:09.3]} 0-1

[Event "Early-Titled-Tuesday-Blitz-May-14-2024"]
[Site "Chess.com"]
[Date "2024.05.14"]
[Round "8"]
[White "cristiano78"]
[Black "SujanaLohani"]
[Result "0-1"]
[WhiteElo "2232"]
[BlackElo "1981"]
[TimeControl "180+1"]
[EndTime "9:31:01 PDT"]
[Termination "SujanaLohani won by checkmate"]

1. d4 {[%clk 0:03:00]} 1... Nf6 {[%clk 0:02:58.5]} 2. c4 {[%clk 0:02:57.7]} 2...
g6 {[%clk 0:02:57.8]} 3. Nc3 {[%clk 0:02:57.1]} 3... d5 {[%clk 0:02:56.5]} 4.
Bf4 {[%clk 0:02:56.1]} 4... Bg7 {[%clk 0:02:53]} 5. e3 {[%clk 0:02:56.3]} 5...
O-O {[%clk 0:02:50.8]} 6. Nf3 {[%clk 0:02:54.4]} 6... c5 {[%clk 0:02:49.6]} 7.
dxc5 {[%clk 0:02:54.3]} 7... Na6 {[%clk 0:02:41.5]} 8. Rc1 {[%clk 0:02:53.5]}
8... dxc4 {[%clk 0:02:39.5]} 9. Bxc4 {[%clk 0:02:53.4]} 9... Nxc5 {[%clk
0:02:38.5]} 10. Qxd8 {[%clk 0:02:50.9]} 10... Rxd8 {[%clk 0:02:36.5]} 11. Ke2
{[%clk 0:02:51]} 11... Bf5 {[%clk 0:02:35]} 12. Rhd1 {[%clk 0:02:49]} 12... Nh5
{[%clk 0:02:30.3]} 13. Be5 {[%clk 0:02:42.8]} 13... Rac8 {[%clk 0:02:24.5]} 14.
Bxg7 {[%clk 0:02:41.8]} 14... Kxg7 {[%clk 0:02:24.3]} 15. Nd5 {[%clk 0:02:39.3]}
15... Kf8 {[%clk 0:02:18]} 16. h3 {[%clk 0:02:34.4]} 16... e5 {[%clk 0:02:11.1]}
17. g4 {[%clk 0:02:32.5]} 17... Be6 {[%clk 0:02:01]} 18. gxh5 {[%clk 0:02:31.4]}
18... Ne4 {[%clk 0:02:00.2]} 19. Nxe5 {[%clk 0:02:20.7]} 19... Bxd5 {[%clk
0:01:54.4]} 20. Bxd5 {[%clk 0:02:19.5]} 20... Rxc1 {[%clk 0:01:52.6]} 21. Rxc1
{[%clk 0:02:19.3]} 21... Rxd5 {[%clk 0:01:53]} 22. Rc8+ {[%clk 0:02:07.9]} 22...
Kg7 {[%clk 0:01:52.1]} 23. Nd3 {[%clk 0:02:05.8]} 23... Rxh5 {[%clk 0:01:49.7]}
24. Rc7 {[%clk 0:02:04.7]} 24... Rb5 {[%clk 0:01:39.4]} 25. b3 {[%clk
0:01:58.5]} 25... Kf6 {[%clk 0:01:38.6]} 26. f3 {[%clk 0:01:52.1]} 26... Nd6
{[%clk 0:01:34.2]} 27. e4 {[%clk 0:01:49.3]} 27... Ne8 {[%clk 0:01:22]} 28. e5+
{[%clk 0:01:43.6]} 28... Ke6 {[%clk 0:01:21.6]} 29. Rc8 {[%clk 0:01:42]} 29...
Kd7 {[%clk 0:01:21.1]} 30. Ra8 {[%clk 0:01:37.6]} 30... Ra5 {[%clk 0:01:19.7]}
31. a4 {[%clk 0:01:37.1]} 31... Nc7 {[%clk 0:01:18.9]} 32. Rh8 {[%clk
0:01:34.9]} 32... h5 {[%clk 0:01:18.4]} 33. b4 {[%clk 0:01:30.4]} 33... Rd5
{[%clk 0:01:16]} 34. f4 {[%clk 0:01:27.5]} 34... b6 {[%clk 0:01:11.2]} 35. Ke3
{[%clk 0:01:26.9]} 35... Ne6 {[%clk 0:01:10.3]} 36. Ra8 {[%clk 0:01:22.1]} 36...
a5 {[%clk 0:01:09.3]} 37. Ra7+ {[%clk 0:01:20.4]} 37... Ke8 {[%clk 0:01:08.1]}
38. bxa5 {[%clk 0:01:18.7]} 38... bxa5 {[%clk 0:00:57.7]} 39. Nb2 {[%clk
0:01:18.4]} 39... Rd4 {[%clk 0:00:51]} 40. Rxa5 {[%clk 0:01:14.8]} 40... Rxf4
{[%clk 0:00:51.3]} 41. Rb5 {[%clk 0:01:11.6]} 41... Rh4 {[%clk 0:00:50.1]} 42.
a5 {[%clk 0:01:10.7]} 42... Rxh3+ {[%clk 0:00:49.1]} 43. Ke4 {[%clk 0:01:09.9]}
43... Ra3 {[%clk 0:00:45.4]} 44. Nc4 {[%clk 0:01:02.2]} 44... Ra4 {[%clk
0:00:43.1]} 45. Kd3 {[%clk 0:01:01.2]} 45... Nf4+ {[%clk 0:00:26.2]} 46. Kc3
{[%clk 0:01:00.8]} 46... h4 {[%clk 0:00:24.7]} 47. Rb7 {[%clk 0:00:58.3]} 47...
h3 {[%clk 0:00:19.9]} 48. Nd6+ {[%clk 0:00:53.2]} 48... Kf8 {[%clk 0:00:19.8]}
49. Rxf7+ {[%clk 0:00:52.8]} 49... Kg8 {[%clk 0:00:20]} 50. Kb3 {[%clk
0:00:49.8]} 50... h2 {[%clk 0:00:18.6]} 51. Kxa4 {[%clk 0:00:45.1]} 51... h1=Q
{[%clk 0:00:18.6]} 52. Kb5 {[%clk 0:00:37.3]} 52... Qd5+ {[%clk 0:00:17.6]} 53.
Kb6 {[%clk 0:00:37.2]} 53... Qxe5 {[%clk 0:00:18.1]} 54. Rd7 {[%clk 0:00:35.3]}
54... Nd5+ {[%clk 0:00:17]} 55. Kc6 {[%clk 0:00:34.5]} 55... Nb4+ {[%clk
0:00:16.9]} 56. Kc7 {[%clk 0:00:34.1]} 56... Qxa5+ {[%clk 0:00:16.5]} 57. Kc8
{[%clk 0:00:33.1]} 57... Qa8+ {[%clk 0:00:13.7]} 58. Kc7 {[%clk 0:00:32.8]}
58... Nd5# {[%clk 0:00:12.6]} 0-1

[Event "Early-Titled-Tuesday-Blitz-May-14-2024"]
[Site "Chess.com"]
[Date "2024.05.14"]
[Round "8"]
[White "KirAk47"]
[Black "PawnEatingZombie"]
[Result "0-1"]
[WhiteElo "2441"]
[BlackElo "2302"]
[TimeControl "180+1"]
[EndTime "9:31:03 PDT"]
[Termination "PawnEatingZombie won on time"]

1. c4 {[%clk 0:03:00.9]} 1... Nf6 {[%clk 0:02:58.9]} 2. g3 {[%clk 0:03:01.1]}
2... g6 {[%clk 0:02:59]} 3. Bg2 {[%clk 0:03:01.1]} 3... Bg7 {[%clk 0:02:59.6]}
4. Nf3 {[%clk 0:03:00.5]} 4... O-O {[%clk 0:03:00.1]} 5. O-O {[%clk 0:03:00.7]}
5... d6 {[%clk 0:03:00.4]} 6. Nc3 {[%clk 0:03:00.5]} 6... e5 {[%clk 0:02:59.8]}
7. d3 {[%clk 0:03:00.3]} 7... Nc6 {[%clk 0:03:00.3]} 8. Rb1 {[%clk 0:02:59.9]}
8... a5 {[%clk 0:02:59.7]} 9. a3 {[%clk 0:02:57.2]} 9... Re8 {[%clk 0:02:57.7]}
10. Qc2 {[%clk 0:02:49.8]} 10... Nd4 {[%clk 0:02:52.4]} 11. Nxd4 {[%clk
0:02:46.1]} 11... exd4 {[%clk 0:02:53.3]} 12. Ne4 {[%clk 0:02:31.7]} 12... Nxe4
{[%clk 0:02:40.5]} 13. dxe4 {[%clk 0:02:31.1]} 13... c6 {[%clk 0:02:41]} 14. b4
{[%clk 0:02:30.2]} 14... axb4 {[%clk 0:02:40.8]} 15. axb4 {[%clk 0:02:30.5]}
15... Be6 {[%clk 0:02:17.4]} 16. Bf4 {[%clk 0:02:18.4]} 16... b5 {[%clk
0:02:15.5]} 17. cxb5 {[%clk 0:02:07.5]} 17... cxb5 {[%clk 0:02:15.3]} 18. Qc6
{[%clk 0:02:07.9]} 18... Bc4 {[%clk 0:01:57.7]} 19. Bf3 {[%clk 0:02:00.8]} 19...
Ra2 {[%clk 0:01:49.8]} 20. Rfe1 {[%clk 0:01:44.8]} 20... Be5 {[%clk 0:01:48.1]}
21. Bc1 {[%clk 0:01:38.1]} 21... Qc8 {[%clk 0:01:36.9]} 22. Qxc8 {[%clk
0:01:33.7]} 22... Rxc8 {[%clk 0:01:37.8]} 23. Bb2 {[%clk 0:01:23]} 23... d3
{[%clk 0:01:23.8]} 24. Bxe5 {[%clk 0:01:18.7]} 24... dxe5 {[%clk 0:01:22.4]} 25.
exd3 {[%clk 0:01:18.7]} 25... Bxd3 {[%clk 0:01:21.9]} 26. Rbc1 {[%clk
0:01:18.8]} 26... Rc4 {[%clk 0:01:12]} 27. Rxc4 {[%clk 0:00:51.7]} 27... bxc4
{[%clk 0:01:11.9]} 28. Rc1 {[%clk 0:00:41]} 28... Rb2 {[%clk 0:01:11.5]} 29. Bg2
{[%clk 0:00:35.2]} 29... Rxb4 {[%clk 0:01:10.9]} 30. Bf1 {[%clk 0:00:34.8]}
30... Bxf1 {[%clk 0:01:04.4]} 31. Kxf1 {[%clk 0:00:33.5]} 31... f5 {[%clk
0:00:50.9]} 32. Ke2 {[%clk 0:00:30.1]} 32... Kf7 {[%clk 0:00:50.6]} 33. exf5
{[%clk 0:00:25.7]} 33... gxf5 {[%clk 0:00:50.3]} 34. Ra1 {[%clk 0:00:25.5]}
34... Ke6 {[%clk 0:00:48.3]} 35. Ra5 {[%clk 0:00:17.2]} 35... Rb2+ {[%clk
0:00:27.6]} 36. Ke3 {[%clk 0:00:15.6]} 36... f4+ {[%clk 0:00:21.1]} 37. gxf4
{[%clk 0:00:14.1]} 37... exf4+ {[%clk 0:00:21.6]} 38. Kxf4 {[%clk 0:00:13.3]}
38... Rxf2+ {[%clk 0:00:21.5]} 39. Kg3 {[%clk 0:00:10.1]} 39... Rc2 {[%clk
0:00:21.2]} 40. Rc5 {[%clk 0:00:09.9]} 40... c3 {[%clk 0:00:21.1]} 41. Rc7
{[%clk 0:00:08.1]} 41... Rc1 {[%clk 0:00:18.9]} 42. Kg2 {[%clk 0:00:04.4]} 42...
c2 {[%clk 0:00:17.2]} 43. h4 {[%clk 0:00:03.6]} 43... h5 {[%clk 0:00:17.1]} 44.
Kh2 {[%clk 0:00:03]} 44... Ke5 {[%clk 0:00:15.5]} 45. Rc4 {[%clk 0:00:02.3]}
45... Kd5 {[%clk 0:00:15.1]} 46. Rc8 {[%clk 0:00:02.3]} 46... Ke4 {[%clk
0:00:14.4]} 47. Kg2 {[%clk 0:00:02.3]} 47... Kf4 {[%clk 0:00:13.3]} 48. Rc4+
{[%clk 0:00:02]} 48... Ke3 {[%clk 0:00:13.6]} 49. Rc8 {[%clk 0:00:01.1]} 49...
Rd1 {[%clk 0:00:10]} 50. Rxc2 {[%clk 0:00:00.5]} 50... Rd5 {[%clk 0:00:09.7]}
51. Re2+ {[%clk 0:00:00.4]} 51... Kf4 {[%clk 0:00:09.8]} 0-1

[Event "Early-Titled-Tuesday-Blitz-May-14-2024"]
[Site "Chess.com"]
[Date "2024.05.14"]
[Round "8"]
[White "Dewarfd"]
[Black "Good_Knight_Kiss"]
[Result "0-1"]
[WhiteElo "2083"]
[BlackElo "2354"]
[TimeControl "180+1"]
[EndTime "9:31:04 PDT"]
[Termination "Good_Knight_Kiss won on time"]

1. d4 {[%clk 0:02:46.7]} 1... Nf6 {[%clk 0:02:58.2]} 2. e3 {[%clk 0:02:46.8]}
2... g6 {[%clk 0:02:58.4]} 3. Nf3 {[%clk 0:02:47.2]} 3... Bg7 {[%clk 0:02:58.7]}
4. Be2 {[%clk 0:02:47.9]} 4... d6 {[%clk 0:02:59.2]} 5. b4 {[%clk 0:02:47.7]}
5... O-O {[%clk 0:02:57.8]} 6. Bb2 {[%clk 0:02:48.3]} 6... e5 {[%clk 0:02:56.9]}
7. c4 {[%clk 0:02:46.1]} 7... exd4 {[%clk 0:02:53.8]} 8. Bxd4 {[%clk 0:02:35.3]}
8... Nc6 {[%clk 0:02:50.2]} 9. b5 {[%clk 0:02:27.6]} 9... Nxd4 {[%clk
0:02:49.2]} 10. exd4 {[%clk 0:02:28.5]} 10... Bf5 {[%clk 0:02:40.9]} 11. O-O
{[%clk 0:02:26.6]} 11... Ne4 {[%clk 0:02:38]} 12. a4 {[%clk 0:02:16.4]} 12... a6
{[%clk 0:02:33]} 13. Ra3 {[%clk 0:02:07.9]} 13... axb5 {[%clk 0:02:29.2]} 14.
axb5 {[%clk 0:01:28.4]} 14... Rxa3 {[%clk 0:02:30.1]} 15. Nxa3 {[%clk
0:01:28.6]} 15... Nc3 {[%clk 0:02:28]} 16. Qd2 {[%clk 0:01:23]} 16... Nxe2+
{[%clk 0:02:26.2]} 17. Qxe2 {[%clk 0:01:23.9]} 17... Re8 {[%clk 0:02:11.2]} 18.
Qd2 {[%clk 0:01:24]} 18... Qa8 {[%clk 0:01:59.9]} 19. Nc2 {[%clk 0:01:12.6]}
19... Qa2 {[%clk 0:01:53.4]} 20. Ne3 {[%clk 0:01:12.5]} 20... Qxd2 {[%clk
0:01:48]} 21. Nxd2 {[%clk 0:01:13.4]} 21... Bd3 {[%clk 0:01:44.5]} 22. Rc1
{[%clk 0:01:01.1]} 22... Bxd4 {[%clk 0:01:42.4]} 23. Nd5 {[%clk 0:01:00]} 23...
c6 {[%clk 0:01:35.2]} 24. bxc6 {[%clk 0:00:59]} 24... bxc6 {[%clk 0:01:36.1]}
25. Nb4 {[%clk 0:00:55.1]} 25... Re2 {[%clk 0:00:53.3]} 26. Nf3 {[%clk
0:00:36.6]} 26... Bxf2+ {[%clk 0:00:31]} 27. Kf1 {[%clk 0:00:36]} 27... Re1+
{[%clk 0:00:27.9]} 28. Kxf2 {[%clk 0:00:31.7]} 28... Rxc1 {[%clk 0:00:27.8]} 29.
Nxd3 {[%clk 0:00:32.2]} 29... Rxc4 {[%clk 0:00:28]} 30. Ke3 {[%clk 0:00:32.4]}
30... f6 {[%clk 0:00:21.1]} 31. Nd4 {[%clk 0:00:25.1]} 31... Kf7 {[%clk
0:00:18.8]} 32. Nf4 {[%clk 0:00:20.5]} 32... g5 {[%clk 0:00:14.2]} 33. Nh5
{[%clk 0:00:20]} 33... Kg6 {[%clk 0:00:12.2]} 34. g4 {[%clk 0:00:18.9]} 34...
Rc3+ {[%clk 0:00:10.2]} 35. Kf2 {[%clk 0:00:16.6]} 35... c5 {[%clk 0:00:09.1]}
36. Nb5 {[%clk 0:00:13.5]} 36... Rd3 {[%clk 0:00:08.4]} 37. Ke2 {[%clk
0:00:13.1]} 37... Rh3 {[%clk 0:00:07.7]} 38. Nxd6 {[%clk 0:00:10.4]} 38... Rxh2+
{[%clk 0:00:07.6]} 39. Kf3 {[%clk 0:00:10.9]} 39... Rh1 {[%clk 0:00:04.2]} 40.
Ng3 {[%clk 0:00:09.4]} 40... Ra1 {[%clk 0:00:03.5]} 41. Ngf5 {[%clk 0:00:08]}
41... Ra3+ {[%clk 0:00:03.7]} 42. Kf2 {[%clk 0:00:06.5]} 42... Ra4 {[%clk
0:00:03.4]} 43. Ne7+ {[%clk 0:00:04.6]} 43... Kg7 {[%clk 0:00:03.1]} 44. Nef5+
{[%clk 0:00:04.2]} 44... Kf8 {[%clk 0:00:03.4]} 45. Ne4 {[%clk 0:00:04.5]} 45...
c4 {[%clk 0:00:02]} 46. Nxf6 {[%clk 0:00:02]} 46... c3 {[%clk 0:00:02.2]} 47.
Ne3 {[%clk 0:00:00.7]} 47... Rf4+ {[%clk 0:00:01.2]} 0-1